[Event "Late-Titled-Tuesday-Blitz-February-13-2024"]
[Site "Chess.com"]
[Date "2024.02.13"]
[Round "9"]
[White "Bilan_Danila"]
[Black "Jahonas"]
[Result "1-0"]
[WhiteElo "2540"]
[BlackElo "2390"]
[TimeControl "180+1"]
[EndTime "15:44:30 PST"]
[Termination "Bilan_Danila won by resignation"]

1. d4 {[%clk 0:03:00.9]} 1... Nf6 {[%clk 0:02:59]} 2. Nf3 {[%clk 0:03:01.7]}
2... e6 {[%clk 0:02:59.1]} 3. g3 {[%clk 0:03:01.1]} 3... b6 {[%clk 0:02:59.5]}
4. Bg2 {[%clk 0:03:01.6]} 4... Bb7 {[%clk 0:02:59.9]} 5. O-O {[%clk 0:03:02.5]}
5... d5 {[%clk 0:02:59.5]} 6. c4 {[%clk 0:03:01.3]} 6... Nbd7 {[%clk 0:02:59.6]}
7. Ne5 {[%clk 0:03:01.6]} 7... Bd6 {[%clk 0:02:57.2]} 8. Qa4 {[%clk 0:02:47.6]}
8... O-O {[%clk 0:02:54]} 9. Bf4 {[%clk 0:02:44.1]} 9... Bxe5 {[%clk 0:02:48.7]}
10. dxe5 {[%clk 0:02:44.1]} 10... Ne4 {[%clk 0:02:44.2]} 11. Bxe4 {[%clk
0:02:27.7]} 11... dxe4 {[%clk 0:02:42.6]} 12. Rd1 {[%clk 0:02:28.4]} 12... Nc5
{[%clk 0:02:39.6]} 13. Rxd8 {[%clk 0:02:05]} 13... Nxa4 {[%clk 0:02:38.4]} 14.
Rxa8 {[%clk 0:02:05.7]} 14... Rxa8 {[%clk 0:02:32.8]} 15. b3 {[%clk 0:02:05.9]}
15... Nc5 {[%clk 0:02:29.5]} 16. Nc3 {[%clk 0:02:06.4]} 16... Rd8 {[%clk
0:02:11.1]} 17. Nb5 {[%clk 0:01:59.1]} 17... a6 {[%clk 0:01:04.7]} 18. Nc3
{[%clk 0:01:51]} 18... a5 {[%clk 0:00:46.2]} 19. Nb5 {[%clk 0:01:43.7]} 19...
Rd7 {[%clk 0:00:44.3]} 20. Be3 {[%clk 0:01:36.7]} 20... Na6 {[%clk 0:00:34.2]}
21. a3 {[%clk 0:01:22.3]} 21... h6 {[%clk 0:00:33.7]} 22. Kf1 {[%clk 0:01:15.3]}
22... Bc6 {[%clk 0:00:33.2]} 23. Nc3 {[%clk 0:01:07.7]} 23... Nc5 {[%clk
0:00:32.2]} 24. Bxc5 {[%clk 0:01:06.9]} 24... bxc5 {[%clk 0:00:32.1]} 25. Ke1
{[%clk 0:01:03.8]} 25... Kf8 {[%clk 0:00:31.5]} 26. Rd1 {[%clk 0:01:03.8]} 26...
Ke7 {[%clk 0:00:31.4]} 27. Rxd7+ {[%clk 0:01:03.7]} 27... Kxd7 {[%clk
0:00:31.2]} 28. Kd2 {[%clk 0:01:02.9]} 28... f5 {[%clk 0:00:31.3]} 29. exf6
{[%clk 0:00:53]} 29... gxf6 {[%clk 0:00:31.3]} 30. Ke3 {[%clk 0:00:53.6]} 30...
f5 {[%clk 0:00:30.3]} 31. Kf4 {[%clk 0:00:42.9]} 31... Kd6 {[%clk 0:00:30.1]}
32. a4 {[%clk 0:00:42.7]} 32... Bd7 {[%clk 0:00:25]} 33. Nb5+ {[%clk 0:00:29.4]}
33... Bxb5 {[%clk 0:00:23.3]} 34. axb5 {[%clk 0:00:30.3]} 34... Ke7 {[%clk
0:00:19.6]} 35. Ke5 {[%clk 0:00:29.9]} 35... Kf7 {[%clk 0:00:19.2]} 36. f3
{[%clk 0:00:28.2]} 36... exf3 {[%clk 0:00:19]} 37. exf3 {[%clk 0:00:29.1]} 37...
Ke7 {[%clk 0:00:19.4]} 38. g4 {[%clk 0:00:28.5]} 38... fxg4 {[%clk 0:00:18.8]}
39. fxg4 {[%clk 0:00:29.4]} 39... Kf7 {[%clk 0:00:19.2]} 40. h4 {[%clk
0:00:29.1]} 40... Ke7 {[%clk 0:00:14.6]} 41. g5 {[%clk 0:00:26.1]} 41... hxg5
{[%clk 0:00:14.7]} 42. hxg5 {[%clk 0:00:27]} 42... Kf7 {[%clk 0:00:13.8]} 43.
g6+ {[%clk 0:00:27]} 43... Kxg6 {[%clk 0:00:13.2]} 44. Kxe6 {[%clk 0:00:27.7]}
1-0

[Event "Late-Titled-Tuesday-Blitz-February-13-2024"]
[Site "Chess.com"]
[Date "2024.02.13"]
[Round "9"]
[White "Nick12772"]
[Black "BabageldiAnnaberdiyev"]
[Result "1/2-1/2"]
[WhiteElo "2356"]
[BlackElo "2605"]
[TimeControl "180+1"]
[EndTime "15:44:32 PST"]
[Termination "Game drawn - insufficient material"]

1. Nf3 {[%clk 0:03:00.9]} 1... c5 {[%clk 0:02:56.7]} 2. g3 {[%clk 0:03:01.2]}
2... Nc6 {[%clk 0:02:57.2]} 3. d4 {[%clk 0:03:00.5]} 3... cxd4 {[%clk 0:02:56]}
4. Nxd4 {[%clk 0:03:01.4]} 4... g6 {[%clk 0:02:56.3]} 5. Bg2 {[%clk 0:03:01.5]}
5... Bg7 {[%clk 0:02:56.4]} 6. Nxc6 {[%clk 0:03:02.2]} 6... bxc6 {[%clk
0:02:56.1]} 7. O-O {[%clk 0:03:02.2]} 7... Nf6 {[%clk 0:02:56.7]} 8. c4 {[%clk
0:03:02.5]} 8... O-O {[%clk 0:02:57.2]} 9. Nc3 {[%clk 0:03:03.2]} 9... d6 {[%clk
0:02:57.7]} 10. Bxc6 {[%clk 0:03:02.6]} 10... Bh3 {[%clk 0:02:57.3]} 11. Bg2
{[%clk 0:02:56.3]} 11... Bxg2 {[%clk 0:02:56.2]} 12. Kxg2 {[%clk 0:02:57.2]}
12... Rc8 {[%clk 0:02:55.1]} 13. Qd3 {[%clk 0:02:46.9]} 13... Qc7 {[%clk
0:02:50]} 14. Nd5 {[%clk 0:02:34.9]} 14... Nxd5 {[%clk 0:02:48.9]} 15. cxd5
{[%clk 0:02:35.8]} 15... Qc2 {[%clk 0:02:48.2]} 16. Rd1 {[%clk 0:02:26.1]} 16...
Bxb2 {[%clk 0:02:43.2]} 17. Bxb2 {[%clk 0:01:55.5]} 17... Qxb2 {[%clk
0:02:44.1]} 18. Rdb1 {[%clk 0:01:48.5]} 18... Qf6 {[%clk 0:02:41.9]} 19. a4
{[%clk 0:01:42.1]} 19... Rc3 {[%clk 0:02:41]} 20. Qd2 {[%clk 0:01:33.5]} 20...
Rfc8 {[%clk 0:02:41.2]} 21. Ra2 {[%clk 0:01:33]} 21... R8c7 {[%clk 0:02:30.8]}
22. a5 {[%clk 0:01:33.2]} 22... Kg7 {[%clk 0:02:30.5]} 23. a6 {[%clk 0:01:33.5]}
23... h5 {[%clk 0:02:30.4]} 24. h4 {[%clk 0:01:32.8]} 24... Qe5 {[%clk
0:02:29.8]} 25. Rb7 {[%clk 0:01:27.7]} 25... R3c5 {[%clk 0:02:15]} 26. Qb2
{[%clk 0:01:16.9]} 26... Qxb2 {[%clk 0:02:10.8]} 27. Raxb2 {[%clk 0:01:13.7]}
27... Kf6 {[%clk 0:02:11.3]} 28. Rxc7 {[%clk 0:01:13]} 28... Rxc7 {[%clk
0:02:12.1]} 29. Rb7 {[%clk 0:01:12.4]} 29... Rc5 {[%clk 0:02:11.1]} 30. e4
{[%clk 0:01:07.5]} 30... Rc4 {[%clk 0:02:11.3]} 31. f3 {[%clk 0:00:54.4]} 31...
Rc2+ {[%clk 0:02:10.6]} 32. Kf1 {[%clk 0:00:52.3]} 32... Rc3 {[%clk 0:02:08.8]}
33. Kf2 {[%clk 0:00:52.1]} 33... Rc2+ {[%clk 0:02:08.7]} 34. Ke3 {[%clk
0:00:52.7]} 34... Rc3+ {[%clk 0:02:08.5]} 35. Kf4 {[%clk 0:00:51.7]} 35... e5+
{[%clk 0:02:04.2]} 36. dxe6 {[%clk 0:00:51.7]} 36... fxe6 {[%clk 0:02:04.9]} 37.
g4 {[%clk 0:00:44.8]} 37... e5+ {[%clk 0:01:47.8]} 38. Kg3 {[%clk 0:00:44.4]}
38... d5 {[%clk 0:01:21]} 39. g5+ {[%clk 0:00:44.1]} 39... Ke6 {[%clk
0:01:20.4]} 40. exd5+ {[%clk 0:00:43.7]} 40... Kxd5 {[%clk 0:01:20.4]} 41. Kf2
{[%clk 0:00:38]} 41... Rc2+ {[%clk 0:01:19.3]} 42. Ke3 {[%clk 0:00:38.2]} 42...
Rc3+ {[%clk 0:01:19.7]} 43. Ke2 {[%clk 0:00:38.7]} 43... Rc4 {[%clk 0:01:19.5]}
44. Rxa7 {[%clk 0:00:36.1]} 44... Rxh4 {[%clk 0:01:16.1]} 45. Rg7 {[%clk
0:00:35.4]} 45... Ra4 {[%clk 0:01:11.8]} 46. Rxg6 {[%clk 0:00:33.7]} 46... e4
{[%clk 0:01:11.3]} 47. fxe4+ {[%clk 0:00:32]} 47... Kxe4 {[%clk 0:01:12.2]} 48.
Rh6 {[%clk 0:00:25.2]} 48... Kf5 {[%clk 0:01:11.6]} 49. Rxh5 {[%clk 0:00:18.2]}
49... Rxa6 {[%clk 0:01:09.9]} 50. Rh6 {[%clk 0:00:13.5]} 50... Ra2+ {[%clk
0:01:08.3]} 51. Kd3 {[%clk 0:00:13.8]} 51... Kxg5 {[%clk 0:01:09.1]} 52. Rb6
{[%clk 0:00:13.9]} 52... Ra5 {[%clk 0:01:08.5]} 53. Ke4 {[%clk 0:00:14.4]} 53...
Ra4+ {[%clk 0:01:06.4]} 54. Kd5 {[%clk 0:00:14.6]} 54... Ra1 {[%clk 0:01:06.3]}
55. Kc4 {[%clk 0:00:15.1]} 55... Rc1+ {[%clk 0:01:05.7]} 56. Kd4 {[%clk
0:00:15.7]} 56... Kf5 {[%clk 0:01:05.8]} 57. Rb8 {[%clk 0:00:15.5]} 57... Rd1+
{[%clk 0:01:05.1]} 58. Ke3 {[%clk 0:00:15.3]} 58... Rd7 {[%clk 0:01:06]} 59. Re8
{[%clk 0:00:15]} 59... Rd6 {[%clk 0:01:05.6]} 60. Kf3 {[%clk 0:00:14]} 60...
Rd3+ {[%clk 0:01:04.8]} 61. Ke2 {[%clk 0:00:14.8]} 61... Ra3 {[%clk 0:01:04.9]}
62. Kd2 {[%clk 0:00:15.2]} 62... Kf6 {[%clk 0:01:04.7]} 63. Re3 {[%clk 0:00:15]}
63... Rxe3 {[%clk 0:01:03.5]} 64. Kxe3 {[%clk 0:00:15.9]} 1/2-1/2

[Event "Late-Titled-Tuesday-Blitz-February-13-2024"]
[Site "Chess.com"]
[Date "2024.02.13"]
[Round "9"]
[White "LUISMIGUELOV"]
[Black "NovakRatko"]
[Result "0-1"]
[WhiteElo "2181"]
[BlackElo "2323"]
[TimeControl "180+1"]
[EndTime "15:44:35 PST"]
[Termination "NovakRatko won on time"]

1. e4 {[%clk 0:03:00.9]} 1... d5 {[%clk 0:02:38.4]} 2. exd5 {[%clk 0:02:59.3]}
2... c6 {[%clk 0:02:38.7]} 3. d4 {[%clk 0:02:54.1]} 3... cxd5 {[%clk 0:02:38.3]}
4. Bd3 {[%clk 0:02:54.5]} 4... Nc6 {[%clk 0:02:38.3]} 5. c3 {[%clk 0:02:53.2]}
5... g6 {[%clk 0:02:36.9]} 6. Bg5 {[%clk 0:02:51.5]} 6... f6 {[%clk 0:02:37]} 7.
Bh4 {[%clk 0:02:47.2]} 7... Qb6 {[%clk 0:02:36.1]} 8. Qe2 {[%clk 0:02:24.6]}
8... e5 {[%clk 0:02:32.1]} 9. dxe5 {[%clk 0:02:03.4]} 9... fxe5 {[%clk
0:02:31.8]} 10. Nf3 {[%clk 0:01:52.1]} 10... e4 {[%clk 0:02:27.8]} 11. O-O
{[%clk 0:01:51]} 11... Be7 {[%clk 0:02:26.5]} 12. Bxe4 {[%clk 0:01:42.4]} 12...
dxe4 {[%clk 0:02:23.8]} 13. Qxe4 {[%clk 0:01:41.8]} 13... Bf5 {[%clk 0:02:23.2]}
14. Qe2 {[%clk 0:01:36.6]} 14... O-O-O {[%clk 0:02:22]} 15. Na3 {[%clk
0:01:28.3]} 15... Bd3 {[%clk 0:02:01.8]} 16. Qe6+ {[%clk 0:01:26.8]} 16... Kb8
{[%clk 0:01:57]} 17. Bg3+ {[%clk 0:01:26.6]} 17... Ka8 {[%clk 0:01:55.1]} 18.
Rfd1 {[%clk 0:01:21.3]} 18... Nh6 {[%clk 0:01:36.2]} 19. Ne5 {[%clk 0:01:15.9]}
19... Bf5 {[%clk 0:01:28.3]} 20. Qc4 {[%clk 0:01:04.7]} 20... Na5 {[%clk
0:01:11.6]} 21. Qa4 {[%clk 0:00:56.3]} 21... Qxb2 {[%clk 0:00:53.4]} 22. Qxa5
{[%clk 0:00:52.4]} 22... Qxa3 {[%clk 0:00:51.5]} 23. Qb5 {[%clk 0:00:33.4]}
23... Qc5 {[%clk 0:00:45]} 24. Qa4 {[%clk 0:00:29]} 24... Bf6 {[%clk 0:00:38.3]}
25. Nf3 {[%clk 0:00:12.8]} 25... Qc6 {[%clk 0:00:26.4]} 26. Qxc6 {[%clk
0:00:11.2]} 26... bxc6 {[%clk 0:00:26.3]} 27. Nd4 {[%clk 0:00:11.4]} 27... Bxd4
{[%clk 0:00:23.6]} 28. cxd4 {[%clk 0:00:11.4]} 28... Be4 {[%clk 0:00:22.7]} 29.
f3 {[%clk 0:00:10.1]} 29... Bd5 {[%clk 0:00:22.3]} 30. Be5 {[%clk 0:00:10.4]}
30... Rhe8 {[%clk 0:00:22.3]} 31. g4 {[%clk 0:00:06.1]} 31... Bxf3 {[%clk
0:00:20.2]} 32. Rd3 {[%clk 0:00:05.6]} 32... Bxg4 {[%clk 0:00:17.6]} 33. Ra3
{[%clk 0:00:05.3]} 33... Rd7 {[%clk 0:00:17]} 34. Re1 {[%clk 0:00:03.4]} 34...
Nf7 {[%clk 0:00:16.7]} 35. h3 {[%clk 0:00:01.8]} 35... Bf5 {[%clk 0:00:16.7]}
0-1

[Event "Late-Titled-Tuesday-Blitz-February-13-2024"]
[Site "Chess.com"]
[Date "2024.02.13"]
[Round "9"]
[White "Doudou2015"]
[Black "johnmez"]
[Result "1-0"]
[WhiteElo "2197"]
[BlackElo "2260"]
[TimeControl "180+1"]
[EndTime "15:44:39 PST"]
[Termination "Doudou2015 won by resignation"]

1. b3 {[%clk 0:02:59.5]} 1... Nf6 {[%clk 0:02:53]} 2. Bb2 {[%clk 0:03:00.4]}
2... g6 {[%clk 0:02:52.2]} 3. Bxf6 {[%clk 0:03:00]} 3... exf6 {[%clk 0:02:48.4]}
4. c4 {[%clk 0:03:00.5]} 4... Bg7 {[%clk 0:02:47.7]} 5. Nc3 {[%clk 0:03:01.1]}
5... O-O {[%clk 0:02:47.3]} 6. g3 {[%clk 0:03:01.6]} 6... f5 {[%clk 0:02:43.3]}
7. Bg2 {[%clk 0:03:01.6]} 7... Nc6 {[%clk 0:02:41.3]} 8. e3 {[%clk 0:03:01.8]}
8... Re8 {[%clk 0:02:39.7]} 9. Nge2 {[%clk 0:03:01.7]} 9... d6 {[%clk
0:02:39.3]} 10. O-O {[%clk 0:03:02]} 10... Be6 {[%clk 0:02:33.8]} 11. d4 {[%clk
0:03:02.9]} 11... Bd7 {[%clk 0:02:19.2]} 12. a3 {[%clk 0:03:01.1]} 12... Rb8
{[%clk 0:02:09.4]} 13. b4 {[%clk 0:02:59.1]} 13... Qg5 {[%clk 0:02:06.3]} 14.
Nf4 {[%clk 0:02:45.4]} 14... Ne7 {[%clk 0:01:50.7]} 15. h4 {[%clk 0:02:31.3]}
15... Qh6 {[%clk 0:01:48.9]} 16. Ncd5 {[%clk 0:02:25.4]} 16... Nxd5 {[%clk
0:01:45.8]} 17. Nxd5 {[%clk 0:02:26.3]} 17... c6 {[%clk 0:01:45.6]} 18. Nf4
{[%clk 0:02:15]} 18... Be6 {[%clk 0:01:38.2]} 19. Rc1 {[%clk 0:02:10.8]} 19...
Rbd8 {[%clk 0:01:33.9]} 20. Qa4 {[%clk 0:02:03.9]} 20... a6 {[%clk 0:01:08.5]}
21. b5 {[%clk 0:02:03.1]} 21... Bxc4 {[%clk 0:01:03.5]} 22. Qxc4 {[%clk
0:01:49.8]} 22... axb5 {[%clk 0:01:03.6]} 23. Qb4 {[%clk 0:01:48.6]} 23... Bf8
{[%clk 0:01:03]} 24. a4 {[%clk 0:01:38.2]} 24... d5 {[%clk 0:01:00.7]} 25. Qb3
{[%clk 0:01:38.2]} 25... bxa4 {[%clk 0:01:00]} 26. Qxb7 {[%clk 0:01:37.2]} 26...
a3 {[%clk 0:01:00]} 27. Qxc6 {[%clk 0:01:33.6]} 27... Qg7 {[%clk 0:00:54.4]} 28.
Nxd5 {[%clk 0:01:30.5]} 28... Re6 {[%clk 0:00:52.9]} 29. Qc7 {[%clk 0:01:22.9]}
29... Rde8 {[%clk 0:00:52.4]} 30. Qa7 {[%clk 0:01:19.8]} 30... g5 {[%clk
0:00:47.6]} 31. hxg5 {[%clk 0:01:17.8]} 31... Qxg5 {[%clk 0:00:48.5]} 32. Nc7
{[%clk 0:01:16.9]} 32... Rh6 {[%clk 0:00:41.3]} 33. Nxe8 {[%clk 0:01:11]} 33...
Qh5 {[%clk 0:00:40.7]} 34. Rfd1 {[%clk 0:01:09.6]} 34... f4 {[%clk 0:00:37.1]}
35. exf4 {[%clk 0:01:03.2]} 35... Qh2+ {[%clk 0:00:26.2]} 36. Kf1 {[%clk
0:01:02.4]} 36... Re6 {[%clk 0:00:20.1]} 37. Qd7 {[%clk 0:00:39]} 37... Re7
{[%clk 0:00:17.3]} 38. Nf6+ {[%clk 0:00:23.1]} 38... Kg7 {[%clk 0:00:14]} 39.
Qg4+ {[%clk 0:00:22.2]} 39... Kxf6 {[%clk 0:00:14.3]} 40. Qg5+ {[%clk
0:00:22.4]} 40... Ke6 {[%clk 0:00:14]} 41. Rc6+ {[%clk 0:00:21.2]} 41... Kd7
{[%clk 0:00:13.8]} 42. Qd5+ {[%clk 0:00:21.1]} 1-0

[Event "Late-Titled-Tuesday-Blitz-February-13-2024"]
[Site "Chess.com"]
[Date "2024.02.13"]
[Round "9"]
[White "verrbaa"]
[Black "KNVB"]
[Result "0-1"]
[WhiteElo "2506"]
[BlackElo "2828"]
[TimeControl "180+1"]
[EndTime "15:44:41 PST"]
[Termination "KNVB won on time"]

1. e4 {[%clk 0:03:00.9]} 1... b6 {[%clk 0:03:00.2]} 2. d4 {[%clk 0:02:59.4]}
2... Bb7 {[%clk 0:03:00.7]} 3. Nc3 {[%clk 0:03:00.1]} 3... e6 {[%clk 0:03:01.2]}
4. Nf3 {[%clk 0:02:57]} 4... Bb4 {[%clk 0:03:01.1]} 5. Bd3 {[%clk 0:02:53.8]}
5... Nf6 {[%clk 0:02:59.1]} 6. e5 {[%clk 0:02:38.6]} 6... Ne4 {[%clk 0:02:59.2]}
7. Bd2 {[%clk 0:02:38.8]} 7... Bxc3 {[%clk 0:02:59.4]} 8. bxc3 {[%clk
0:02:38.2]} 8... f5 {[%clk 0:03:00]} 9. Qe2 {[%clk 0:02:17]} 9... O-O {[%clk
0:02:59.4]} 10. O-O {[%clk 0:02:15.4]} 10... Nc6 {[%clk 0:02:56.9]} 11. a4
{[%clk 0:02:05.5]} 11... Qe8 {[%clk 0:02:52.6]} 12. c4 {[%clk 0:01:50.7]} 12...
Qg6 {[%clk 0:02:29.6]} 13. d5 {[%clk 0:01:19.4]} 13... Ne7 {[%clk 0:02:29.9]}
14. Nh4 {[%clk 0:01:11.9]} 14... Qf7 {[%clk 0:02:27]} 15. Bxe4 {[%clk
0:01:11.9]} 15... fxe4 {[%clk 0:02:27.2]} 16. d6 {[%clk 0:01:12.2]} 16... cxd6
{[%clk 0:01:53.4]} 17. exd6 {[%clk 0:01:13.1]} 17... Ng6 {[%clk 0:01:53.6]} 18.
Nxg6 {[%clk 0:01:12.4]} 18... Qxg6 {[%clk 0:01:54.5]} 19. Be3 {[%clk 0:01:12.6]}
19... Rac8 {[%clk 0:01:51.8]} 20. a5 {[%clk 0:01:11.5]} 20... Ba6 {[%clk
0:01:40]} 21. Rfb1 {[%clk 0:00:56.4]} 21... Bxc4 {[%clk 0:01:35.3]} 22. Qd2
{[%clk 0:00:56.7]} 22... bxa5 {[%clk 0:01:17.5]} 23. Rxa5 {[%clk 0:00:56.1]}
23... a6 {[%clk 0:01:14.4]} 24. Rg5 {[%clk 0:00:49.3]} 24... Qe8 {[%clk
0:01:09.1]} 25. Bd4 {[%clk 0:00:47.5]} 25... Rf7 {[%clk 0:01:08.4]} 26. Qe3
{[%clk 0:00:35.7]} 26... Qf8 {[%clk 0:01:03.2]} 27. Qg3 {[%clk 0:00:34.3]} 27...
h6 {[%clk 0:00:58.9]} 28. Rg6 {[%clk 0:00:34.2]} 28... Kh7 {[%clk 0:00:59.5]}
29. h4 {[%clk 0:00:33.5]} 29... a5 {[%clk 0:00:27.7]} 30. h5 {[%clk 0:00:33.3]}
30... Qg8 {[%clk 0:00:11.8]} 31. Re1 {[%clk 0:00:09.2]} 31... Bd5 {[%clk
0:00:10.4]} 32. Ra1 {[%clk 0:00:06.2]} 32... Ra8 {[%clk 0:00:03.7]} 33. Ra3
{[%clk 0:00:05]} 33... a4 {[%clk 0:00:03.7]} 34. Kh2 {[%clk 0:00:02.4]} 34...
Bc6 {[%clk 0:00:02.8]} 35. Be5 {[%clk 0:00:02]} 35... Ra5 {[%clk 0:00:03.1]} 0-1

[Event "Late-Titled-Tuesday-Blitz-February-13-2024"]
[Site "Chess.com"]
[Date "2024.02.13"]
[Round "9"]
[White "Njal28"]
[Black "gahryman"]
[Result "1-0"]
[WhiteElo "2978"]
[BlackElo "2694"]
[TimeControl "180+1"]
[EndTime "15:44:42 PST"]
[Termination "Njal28 won by checkmate"]

1. Nc3 {[%clk 0:02:59.3]} 1... c5 {[%clk 0:02:57.9]} 2. e4 {[%clk 0:02:55.9]}
2... Nc6 {[%clk 0:02:57.7]} 3. Nf3 {[%clk 0:02:56.7]} 3... g6 {[%clk 0:02:55.1]}
4. Bb5 {[%clk 0:02:56.1]} 4... Nd4 {[%clk 0:02:53.6]} 5. Bc4 {[%clk 0:02:55.3]}
5... Bg7 {[%clk 0:02:52]} 6. Nxd4 {[%clk 0:02:55.5]} 6... cxd4 {[%clk
0:02:51.8]} 7. Qf3 {[%clk 0:02:55.7]} 7... Nh6 {[%clk 0:02:42.7]} 8. Ne2 {[%clk
0:02:42.8]} 8... O-O {[%clk 0:02:41.5]} 9. d3 {[%clk 0:02:43.5]} 9... d6 {[%clk
0:02:10.4]} 10. h3 {[%clk 0:02:43.6]} 10... Kh8 {[%clk 0:01:58.1]} 11. Qg3
{[%clk 0:02:39.4]} 11... e5 {[%clk 0:01:53.4]} 12. O-O {[%clk 0:02:33.3]} 12...
f5 {[%clk 0:01:52.9]} 13. Bg5 {[%clk 0:02:33.9]} 13... Qe8 {[%clk 0:01:48.3]}
14. Qh4 {[%clk 0:02:11.4]} 14... Nf7 {[%clk 0:01:42]} 15. Be7 {[%clk 0:02:11.3]}
15... g5 {[%clk 0:01:31.3]} 16. Bxg5 {[%clk 0:02:11]} 16... Nxg5 {[%clk
0:01:31.5]} 17. Qxg5 {[%clk 0:02:11.2]} 17... f4 {[%clk 0:01:32.4]} 18. Kh1
{[%clk 0:02:02]} 18... Be6 {[%clk 0:01:29.1]} 19. Bxe6 {[%clk 0:02:00.2]} 19...
Qxe6 {[%clk 0:01:30]} 20. Qg4 {[%clk 0:02:00.8]} 20... Qf7 {[%clk 0:01:21.7]}
21. Qf3 {[%clk 0:02:00.5]} 21... Rac8 {[%clk 0:00:45.3]} 22. c3 {[%clk
0:02:01.4]} 22... b5 {[%clk 0:00:44.9]} 23. a4 {[%clk 0:01:58.7]} 23... b4
{[%clk 0:00:44.1]} 24. cxd4 {[%clk 0:01:56]} 24... exd4 {[%clk 0:00:43.8]} 25.
Rac1 {[%clk 0:01:56.6]} 25... Be5 {[%clk 0:00:38.3]} 26. Ng1 {[%clk 0:01:52.7]}
26... b3 {[%clk 0:00:37]} 27. Qg4 {[%clk 0:01:49.2]} 27... Rc2 {[%clk 0:00:35]}
28. Nf3 {[%clk 0:01:26.2]} 28... Rg8 {[%clk 0:00:32.1]} 29. Qf5 {[%clk
0:01:09.3]} 29... Qxf5 {[%clk 0:00:31]} 30. exf5 {[%clk 0:01:10.2]} 30... Rxb2
{[%clk 0:00:30]} 31. Rb1 {[%clk 0:01:09.8]} 31... Rxb1 {[%clk 0:00:26.6]} 32.
Rxb1 {[%clk 0:01:10.7]} 32... Rb8 {[%clk 0:00:21]} 33. Rb2 {[%clk 0:01:07.7]}
33... Rb4 {[%clk 0:00:19.7]} 34. g4 {[%clk 0:01:02.6]} 34... fxg3 {[%clk
0:00:18.7]} 35. fxg3 {[%clk 0:01:03.5]} 35... Bxg3 {[%clk 0:00:17.7]} 36. Nd2
{[%clk 0:01:04.4]} 36... Be5 {[%clk 0:00:16.5]} 37. Rxb3 {[%clk 0:00:57]} 37...
Rxa4 {[%clk 0:00:16.6]} 38. Ne4 {[%clk 0:00:55.6]} 38... Ra2 {[%clk 0:00:14.2]}
39. Rb7 {[%clk 0:00:52.2]} 39... Kg8 {[%clk 0:00:13.6]} 40. Rd7 {[%clk
0:00:43.2]} 40... h6 {[%clk 0:00:13.2]} 41. f6 {[%clk 0:00:43.3]} 41... a5
{[%clk 0:00:13.2]} 42. Kg1 {[%clk 0:00:34.9]} 42... a4 {[%clk 0:00:12.9]} 43.
f7+ {[%clk 0:00:35]} 43... Kf8 {[%clk 0:00:13]} 44. Nf2 {[%clk 0:00:35.9]} 44...
Bh2+ {[%clk 0:00:09.9]} 45. Kf1 {[%clk 0:00:36]} 45... Bf4 {[%clk 0:00:09.6]}
46. Ng4 {[%clk 0:00:36]} 46... Be3 {[%clk 0:00:08.6]} 47. Ke1 {[%clk 0:00:33.5]}
47... a3 {[%clk 0:00:07.9]} 48. Nf6 {[%clk 0:00:33.8]} 48... Rf2 {[%clk
0:00:08.3]} 49. Nh7+ {[%clk 0:00:34.3]} 49... Kg7 {[%clk 0:00:06.3]} 50. f8=Q+
{[%clk 0:00:35.2]} 50... Kg6 {[%clk 0:00:06.8]} 51. Qg8+ {[%clk 0:00:35.2]}
51... Kh5 {[%clk 0:00:07.1]} 52. Qg4# {[%clk 0:00:36.1]} 1-0

[Event "Late-Titled-Tuesday-Blitz-February-13-2024"]
[Site "Chess.com"]
[Date "2024.02.13"]
[Round "9"]
[White "Korchmar_Vasiliy"]
[Black "rhungaski"]
[Result "1-0"]
[WhiteElo "2776"]
[BlackElo "2578"]
[TimeControl "180+1"]
[EndTime "15:44:44 PST"]
[Termination "Korchmar_Vasiliy won on time"]

1. e4 {[%clk 0:03:00.9]} 1... g6 {[%clk 0:02:59.7]} 2. d4 {[%clk 0:03:00.8]}
2... Bg7 {[%clk 0:03:00.2]} 3. Nc3 {[%clk 0:03:00.7]} 3... d6 {[%clk 0:03:00.6]}
4. f4 {[%clk 0:02:59]} 4... a6 {[%clk 0:03:00.2]} 5. Nf3 {[%clk 0:02:58.2]} 5...
b5 {[%clk 0:03:00]} 6. Bd3 {[%clk 0:02:58.7]} 6... Nd7 {[%clk 0:02:58.6]} 7. a4
{[%clk 0:02:58.7]} 7... b4 {[%clk 0:02:55.3]} 8. Ne2 {[%clk 0:02:59.2]} 8... c5
{[%clk 0:02:53.1]} 9. c3 {[%clk 0:02:59.4]} 9... Bb7 {[%clk 0:02:48.3]} 10. O-O
{[%clk 0:02:56.4]} 10... bxc3 {[%clk 0:02:23.1]} 11. bxc3 {[%clk 0:02:57.3]}
11... cxd4 {[%clk 0:02:02.2]} 12. cxd4 {[%clk 0:02:58.2]} 12... Nc5 {[%clk
0:01:59.3]} 13. Rb1 {[%clk 0:01:45.4]} 13... Nxd3 {[%clk 0:01:57.7]} 14. Qxd3
{[%clk 0:01:46.3]} 14... Bc6 {[%clk 0:01:48.6]} 15. e5 {[%clk 0:01:32]} 15...
Nh6 {[%clk 0:01:37.3]} 16. Ng3 {[%clk 0:01:26.9]} 16... Bxa4 {[%clk 0:01:32.7]}
17. f5 {[%clk 0:01:01.3]} 17... Nxf5 {[%clk 0:01:32.1]} 18. Nxf5 {[%clk
0:01:01.2]} 18... gxf5 {[%clk 0:01:32.3]} 19. Qxf5 {[%clk 0:01:00.5]} 19... e6
{[%clk 0:00:20.2]} 20. Qg4 {[%clk 0:00:40.9]} 20... Rg8 {[%clk 0:00:16]} 21. Bh6
{[%clk 0:00:27.4]} 21... Bc2 {[%clk 0:00:10.2]} 22. Bxg7 {[%clk 0:00:19.1]}
22... Bf5 {[%clk 0:00:09.4]} 23. Qg3 {[%clk 0:00:16.7]} 23... Bxb1 {[%clk
0:00:08.7]} 24. Rxb1 {[%clk 0:00:17.6]} 24... dxe5 {[%clk 0:00:08.2]} 25. Qxe5
{[%clk 0:00:15.3]} 25... Qd5 {[%clk 0:00:08.1]} 26. Rb8+ {[%clk 0:00:09.2]}
26... Kd7 {[%clk 0:00:08.1]} 27. Rxg8 {[%clk 0:00:03.4]} 27... Rxg8 {[%clk
0:00:07.7]} 28. Qf6 {[%clk 0:00:04.1]} 28... Ke8 {[%clk 0:00:05.2]} 29. Bh6
{[%clk 0:00:04.3]} 29... a5 {[%clk 0:00:02.3]} 30. Bg5 {[%clk 0:00:04.7]} 30...
Qd7 {[%clk 0:00:02.1]} 31. Ne5 {[%clk 0:00:05.1]} 31... Qxd4+ {[%clk 0:00:01.9]}
32. Kf1 {[%clk 0:00:05.7]} 32... Qa1+ {[%clk 0:00:01.3]} 33. Kf2 {[%clk
0:00:05.2]} 1-0